{"text_format":"1","workbook":"xlsx","n_sheets":9,"sheets":["Instructivo","DEMANDA ANUAL","VOLUMEN DE QUEJAS","COSTO ADMINISTRACIÓN PÚBLICA","RESUMEN DE COSTOS AP","AUXILIAR COSTO ADMINISTRACIÓN","TIEMPO DE RESPUESTA","CANAL ATENCIÓN","RESUMEN"],"not_rendered":{"charts":0,"images":7,"macros":1,"external_links":0,"defined_names":0,"comments":5,"pivot_tables":0},"unopened":[],"bounds":{"document_bytes":16777216,"sheet_cells":100000,"rows_first":2000,"rows_last":500,"rows_between":2000,"halvings":0,"cell_chars":16384,"cell_head_chars":4096},"cells_cut":0,"cells_raw":0,"read":"whole","date_system":"1900"}

{"sheet":"Instructivo","index":0,"n_rows":70,"n_cols":1,"rows_kept":70,"cut":false,"hidden":false,"merged":[]}
["CRITERIO DE PRIORIZACIÓN DE TRÁMITES ADMINISTRATIVOS"]
["Instructivo"]
["Consideraciones generales"]
[]
["En las hojas “COSTO DE ADMINISTRACIÓN PÚBLICA”y “RESUMEN”  para añadir más trámites y que apliquen las fórmulas, se deberá seleccionar la primera fila y copiarla una por cada trámite de la entidad"]
[]
["Todas las hojas tienen columnas de color celeste, en las cuales NO deben ingresar valores ya que contienen fórmulas."]
["Para la carga en GOB.EC. La institución debe recordar que el peso máximo del archivo es de 2 MB."]
["Esquema de puntuación"]
["Para priorizar un trámite, se realizará un análisis de criterios básicos y adicionales basado en información que disponen las instituciones sujetas a esta norma técnica. Cada criterio será puntuado según los lineamientos presentes en esta norma."]
["a) Demanda Anual"]
["Considerará el volumen o frecuencia de las solicitudes que ingresan al año a cada institución para la gestión de un trámite en particular."]
["La identificación del volumen anual de los trámites se realizará a través de sus registros de transacciones y/o el número de visitas de consulta de información realizadas a través de páginas web institucionales."]
["Para realizar el registro realice lo siguiente:"]
["1.- Seleccione la hoja DEMANDA ANUAL"]
["2.- Ingrese los trámites de la institución registrando el identificador y nombre en las columnas respectivas.  "]
["3.- Para cada trámite debe especificar en la columna DEMANDA ANUAL el volumen o frecuencia anual, de acuerdo a lo mencionado anteriormente."]
["4.- Una vez terminado el llenado solicitado presione el botón PUNTUACIÓN, se ordenara de menor a mayor. "]
["5.- Usted visualizará el ordenamiento de los trámites ingresados de acuerdo al número de  volumen o frecuencia anual."]
["6.- Así mismo, usted visualizará el puntaje obtenido en la columna PUNTUACIÓN de acuerdo al grupo obtenido por cada trámite de acuerdo al número de volumen o frecuencia anual cosiderando lo siguiente: ** Primer grupo (trámites con menor demanda no incluye los trámites con demanda 0 ) = 3\n** Segundo grupo (trámites con demanda intermedia) = 6\n** Tercer grupo (trámites con mayor demanda) = 10"]
["Cada vez que requiera actualizar el puntaje presionando el botón puntuación, debe verificar que la celda de la columna puntaje se encuentren vacías, es decir, se debe borrar cualquier valor de puntaje obtenido previamente."]
["b) Volumen de quejas asociadas a un trámite: "]
["Considerará la cantidad de quejas recibidas en relación a un trámite durante un año. Estas quejas deberán estar documentadas en medios físicos y/o digitales."]
["Para determinar la puntuación, se colocará en una tabla todos los trámites con sus correspondientes quejas ordenándose de menor a mayor. Se dividirá en 2 partes en los que cada grupo contenga la misma cantidad de trámites."]
["Para realizar el registro realice lo siguiente:"]
["1.- Seleccione la hoja VOLUMEN DE QUEJAS"]
["2.- Ingrese los trámites de la institución registrando el identificador y nombre en las columnas respectivas.  Si usted requiere de acuerdo al número de trámites copie filas adicionales que estén dentro del cuadro"]
["3.- Para cada trámite debe especificar en la columna VOLUMEN QUEJAS el número de quejas anual, de acuerdo a lo mencionado anteriormente."]
["4.- Una vez terminado el llenado solicitado presione el botón PUNTUACIÓN."]
["5.- Usted visualizará el ordenamiento de los trámites ingresados de acuerdo al número de  volumen o frecuencia anual."]
["6.- Así mismo, usted visualizará el puntaje obtenido en la columna PUNTUACIÓN de acuerdo al grupo obtenido por cada trámite de acuerdo al número de volumen o frecuencia anual cosiderando lo siguiente: La puntuación se basará en los siguientes grupos:\n** Primer grupo (trámites con menor cantidad de quejas, no incluye los trámites con queja 0 ) = 4\n** Segundo grupo (trámites con mayor porcentaje de quejas) = 10"]
["El valor del volumen de quejas no debe ser superior al valor del volumen de la demana, no le permitirá registrar un valor."]
["c) Costo para la administración pública: "]
["En cada trámite, basado en un caso estándar, se deberá estimar el costo incurrido en el costo de personal y recursos necesarios para su atención desde que el administrado entregó todos los requisitos hasta que la institución entregue el producto, respuesta o servicio requerido en el trámite. Se considerará:"]
["• Costo de personal:"]
["Costo del personal para atender el trámite, se excluyen actividades realizadas automáticamente o que dependen del administrado. El tiempo deberá considerar únicamente el tiempo efectivo de trabajo del personal, no debe considerar el tiempo de espera o de movimiento."]
["• Costo de recursos:"]
["Se deberá considerar el costo directo en el que la institución debe incurrir para atender un trámite. Se debe considerar los insumos o materia prima necesaria u cualquier otro que la institución considere pertinente."]
["Para realizar el registro realice lo siguiente:"]
["1.- Seleccione la hoja COSTO ADMINISTRACIÓN PÚBLICA"]
["2.- Ingrese los trámites de la institución registrando el identificador y nombre en las columnas respectivas.  Si usted requiere de acuerdo al número de trámites copie filas adicionales que estén dentro del cuadro"]
["3.- Para calcular el tiempo de las actividades, utilizar la hoja AUXILIAR COSTO ADMINISTRACIÓN donde deberá listar todas las actividades que realiza la institución en un caso estándar y asignar el tiempo mínimo que toma cada actvidad (en horas). El tiempo total de las actividades, deberá ingresar en la correspondiente celda de la hoja COSTO ADMINISTRACIÓN PÚBLICA"]
["4.- En función de la información registrada en el paso 3, la matriz entregará el costo del personal"]
["5.- Completar la columna \"Costo recursos\", en la cual ingresará el costo directo en el que incurre la institución para entregar el trámite. En este valor se considerarán los valores correspondientes a insumos y/o materia prima mínimos que se invierten por cada trámite (no se considera mano de obra)"]
["6.- La columna \"Costo para la adm. pública\" mostrará el costto de este criterio para cada trámite"]
["7,- Para que la fórmula funcione debe arrastrar hacia abajo al último de los támites ingresados, no copiar"]
["7.- Una vez que disponga del Costo para la administración pública, presionar el botón \"GENERAR\"."]
["8. Visualizar la hoja “RESUMEN DE COSTO AP” en la que va a encontrar copiada las celdas necesarias para el ordenamiento y puntuación de las mismas al presionar el botón “PUNTUACIÓN”"]
[]
["d) Tiempo de respuesta: "]
["Considerará los tiempos que a las instituciones les toma dar respuesta a un trámite desde que reciben la solicitud del administrado hasta la finalización del mismo. Para la definición del tiempo se considerará un caso estándar."]
["Para determinar la puntuación, se colocará en una tabla todos los trámites con el tiempo de respuesta, ordenándose de menor a mayor. Se dividirá en 4 grupos, en los que cada uno contenga la misma cantidad de trámites."]
["Para realizar el registro realice lo siguiente:"]
["1.- Seleccione la hoja TIEMPO DE RESPUESTA"]
["2.- Ingrese los trámites de la institución registrando el identificador y nombre en las columnas respectivas.  Si usted requiere de acuerdo al número de trámites copie filas adicionales que estén dentro del cuadro"]
["3.- Para cada trámite debe especificar en la columna TIEMPO RESPUESTA el tiempo, de acuerdo a lo mencionado anteriormente."]
["4.- Una vez terminado el llenado solicitado presione el botón PUNTUACIÓN."]
["5.- Usted visualizará el ordenamiento de los trámites ingresados de acuerdo al número de  volumen o frecuencia anual."]
["6.- Así mismo, usted visualizará el puntaje obtenido en la columna PUNTUACIÓN de acuerdo al grupo obtenido por cada trámite de acuerdo al número de volumen o frecuencia anual cosiderando lo siguiente:  La puntuación considera lo siguiente:\n** Primer grupo (menor o igual a 40 horas laboralres) = 0\n** Segundo grupo mayor  40 horas laboralres) = 30"]
["e) Canal de atención: "]
["Considerará los canales de atención a través de los cuales el administrado puede iniciar el trámite."]
["Para realizar el registro realice lo siguiente:"]
["1.- Seleccione la hoja CANAL ATENCIÓN"]
["2.- Ingrese los trámites de la institución registrando el identificador y nombre en las columnas respectivas.  Si usted requiere de acuerdo al número de trámites copie filas adicionales que estén dentro del cuadro"]
["3.- Para cada trámite debe seleccionar el canal de atención del trámite en la columna CANAL ATENCIÓN, que pueden ser: \nEl trámite se puede completar totalmente en línea: Se considera trámite totalmente en línea cuando el administrado no requiere realizar ninguna interacción presencial con la institución = 0\nEl trámite no se puede completar totalmente en línea: Se considera este caso, cuando el trámite incluye al menos una actividad, incluido mecanismos de pago, en la que el administrado deba acudir presencialmente a la institución, para la realización de dicho trámite. Los trámites presenciales se consideran dentro de esta categoría = 10"]
["4.- De acuerdo a la selección usted obtendrá la puntuación del trámite que se visualizará en la columna PUNTUACIÓN."]
[]
["f) Resumen"]
["En esta hoja deberá consolidar todas las puntuaciones obtenidas para cada trámite en los criterios a) hasta e). Adicionalmente deberá analizar los criterios adicionales que dispone la norma técnica, para estos últimos solamente deberá seleccionar en la celda correspondiente y la matriz asignará la puntuación adicional. Los criterios que deberá considerar son:\n- NECESIDADES CIUDADANAS: Si la institución ha implementado mecanismos para identificar necesidades ciudadanas respecto al trámite, seleccionar \"SI\", caso contrario, seleccionar \"NO\"\n- SUSCEPTIBILIDAD A CORRUPCIÓN: Si la institución dispone de información documentada sobre presuntos actos de corrupción, seleccionar \"SI\", caso contrario, seleccionar \"NO\"\n- VOLUMEN DE DEVOLUCIONES: Si la institución posee documentación sobre devoluciones del trámite en una cantidad significativa, seleccionar \"SI\", caso contrario, seleccionar \"NO\"\nPara que funcione la lista depelgable debe arrastrar la lista y la puntuación hacia abajo al último de los támites ingresados, no copiar"]
["En la columna puntaje total se realizará la sumatoria de los valores de los criterios básicos y adicionales. Este valor deberá registrarse en la plataforma GOB.EC"]

{"sheet":"DEMANDA ANUAL","index":1,"n_rows":21,"n_cols":4,"rows_kept":21,"cut":false,"hidden":false,"merged":[[0,0,0,3],[1,0,1,3]]}
["PRIORIZACIÓN DE TRÁMITES ADMINISTRATIVOS"]
["DEMANDA ANUAL"]
[]
["IDENTIFICADOR","TRÁMITE","DEMANDA ANUAL","PUNTAJE"]
["SERCOP-010-01-01","Registro para la certificación de Operadores del Sistema Nacional de Contratación Pública",0,0]
["SERCOP-008-02-02","Autorización de Contratación extranjera de servicios de consultoría en el Sistema Nacional de Contratación Pública",7,3]
["SERCOP-008-03-01","Determinación del Giro Específico del Negocio en el Sistema Nacional de Contratación Pública",9,3]
["SERCOP-001-02-04 ","Inscripción y habilitación de entidades contratantes de derecho privado en el Sistema Oficial de Contratación Pública del Ecuador",33,3]
["SERCOP-001-02-01","Inscripción y habilitación de entidades públicas contratantes en el Sistema Oficial de Contratación Pública del Ecuador",51,3]
["SERCOP-001-02-06 ","Cambio de perfil de \"usuario administrador del portal\" de entidades contratantes en el Sistema Oficial de Contratación Pública del Ecuador",82,3]
["SERCOP-001-02-07","Actualización de información de las entidades contratantes en el Sistema Oficial de Contratación Pública del Ecuador",98,6]
["SERCOP-008-01-01","Autorización de Licencias de Importación en la Ventanilla Única Ecuatoriana",923,6]
["SERCOP-009-03-03 ","Publicación de información específica en el portal institucional del Servicio Nacional de Contratación Pública SERCOP",940,6]
["SERCOP-008-01-02","Autorización de Importación de Bienes y Servicios en el Sistema Nacional de Contratación Pública",1012,6]
["SERCOP-004-01-01 ","Atención de denuncia o reclamo sobre un proceso de contratación pública",3413,6]
["SERCOP-003-01-02 ","Capacitación presencial en el Sistema Nacional de Contratación Pública",17189,10]
["SERCOP-001-01-01","Inscripción y habilitación o actualización de información del proveedor en el Sistema Oficial de Contratación Pública del Ecuador",20071,10]
["SERCOP-005-01-07","Asesoría técnica y legal en Contratación Pública",67829,10]
["SERCOP-002-02-01","Certificación para personas naturales o juridicas de no tener procesos adjudicados o contratos pendientes con el Estado, y de no ser contratista incumplido o adjudicatario fallido",80262,10]
["SERCOP-001-02-05 ","Reseteo de contraseña de administrador del portal de entidades contratantes",100178,10]
["SERCOP-005-01-08 ","Soporte en las herramientas del Sistema Oficial de Contratación Pública del Ecuador - SOCE",114156,10]

{"sheet":"VOLUMEN DE QUEJAS","index":2,"n_rows":21,"n_cols":6,"rows_kept":21,"cut":false,"hidden":false,"merged":[[0,0,0,5],[1,0,1,5]]}
["PRIORIZACIÓN DE TRÁMITES ADMINISTRATIVOS"]
["VOLUMEN DE QUEJAS"]
[]
["IDENTIFICADOR","TRÁMITE","VOLUMEN DEMANDA","VOLUMEN DE QUEJAS","PORCENTAJE","PUNTUACIÓN"]
["SERCOP-010-01-01","Registro para la certificación de Operadores del Sistema Nacional de Contratación Pública",0,0,0,0]
["SERCOP-008-02-02","Autorización de Contratación extranjera de servicios de consultoría en el Sistema Nacional de Contratación Pública",7,0,0,0]
["SERCOP-008-03-01","Determinación del Giro Específico del Negocio en el Sistema Nacional de Contratación Pública",9,0,0,0]
["SERCOP-001-02-04 ","Inscripción y habilitación de entidades contratantes de derecho privado en el Sistema Oficial de Contratación Pública del Ecuador",33,0,0,0]
["SERCOP-001-02-01","Inscripción y habilitación de entidades públicas contratantes en el Sistema Oficial de Contratación Pública del Ecuador",51,0,0,0]
["SERCOP-001-02-06 ","Cambio de perfil de \"usuario administrador del portal\" de entidades contratantes en el Sistema Oficial de Contratación Pública del Ecuador",82,0,0,0]
["SERCOP-001-02-07","Actualización de información de las entidades contratantes en el Sistema Oficial de Contratación Pública del Ecuador",98,0,0,0]
["SERCOP-008-01-01","Autorización de Licencias de Importación en la Ventanilla Única Ecuatoriana",923,0,0,0]
["SERCOP-009-03-03 ","Publicación de información específica en el portal institucional del Servicio Nacional de Contratación Pública SERCOP",940,0,0,0]
["SERCOP-008-01-02","Autorización de Importación de Bienes y Servicios en el Sistema Nacional de Contratación Pública",1012,0,0,0]
["SERCOP-004-01-01 ","Atención de denuncia o reclamo sobre un proceso de contratación pública",3413,0,0,0]
["SERCOP-003-01-02 ","Capacitación presencial en el Sistema Nacional de Contratación Pública",17189,0,0,0]
["SERCOP-001-01-01","Inscripción y habilitación o actualización de información del proveedor en el Sistema Oficial de Contratación Pública del Ecuador",20071,0,0,0]
["SERCOP-005-01-07","Asesoría técnica y legal en Contratación Pública",67829,0,0,0]
["SERCOP-002-02-01","Certificación para personas naturales o juridicas de no tener procesos adjudicados o contratos pendientes con el Estado, y de no ser contratista incumplido o adjudicatario fallido",80262,0,0,0]
["SERCOP-001-02-05 ","Reseteo de contraseña de administrador del portal de entidades contratantes",100178,0,0,0]
["SERCOP-005-01-08 ","Soporte en las herramientas del Sistema Oficial de Contratación Pública del Ecuador - SOCE",114156,0,0,0]

{"sheet":"COSTO ADMINISTRACIÓN PÚBLICA","index":3,"n_rows":22,"n_cols":9,"rows_kept":22,"cut":false,"hidden":false,"merged":[[0,0,0,5],[1,0,1,5],[3,0,4,0],[3,1,4,1],[3,2,3,4],[3,5,4,5]]}
["PRIORIZACIÓN DE TRÁMITES ADMINISTRATIVOS"]
["COSTOS PARA LA ADMINISTRACIÓN PÚBLICA"]
[]
["IDENTIFICADOR","TRÁMITE","INSUMOS PARA COSTO",null,null,"COSTO PARA LA ADM. PÚBLICA",null,"SBU",400]
[null,null,"TIEMPO (HORAS)","COSTO PERSONAL","COSTO RECURSOS"]
["SERCOP-010-01-01","Registro para la certificación de Operadores del Sistema Nacional de Contratación Pública",{"$f":"'AUXILIAR COSTO ADMINISTRACIÓN'!C209","v":1.7932088888888889},{"$f":"C6*$I$4/160","v":4.483022222222222},{"$f":"'AUXILIAR COSTO ADMINISTRACIÓN'!D209","v":2.0307155555555547},{"$f":"D6+E6","v":6.5137377777777772}]
["SERCOP-008-02-02","Autorización de Contratación extranjera de servicios de consultoría en el Sistema Nacional de Contratación Pública",{"$f":"'AUXILIAR COSTO ADMINISTRACIÓN'!C314","v":9.5},{"$f":"C7*$I$4/160","v":23.75},{"$f":"'AUXILIAR COSTO ADMINISTRACIÓN'!D314","v":28.5},{"$f":"D7+E7","v":52.25}]
["SERCOP-008-03-01","Determinación del Giro Específico del Negocio en el Sistema Nacional de Contratación Pública",{"$f":"'AUXILIAR COSTO ADMINISTRACIÓN'!C356","v":95.208333333333329},238.02083333333331,{"$f":"'AUXILIAR COSTO ADMINISTRACIÓN'!D356","v":290.75},528.77083333333326]
["SERCOP-001-02-04 ","Inscripción y habilitación de entidades contratantes de derecho privado en el Sistema Oficial de Contratación Pública del Ecuador",{"$f":"'AUXILIAR COSTO ADMINISTRACIÓN'!C62","v":0.25},0.625,{"$f":"'AUXILIAR COSTO ADMINISTRACIÓN'!D62","v":0.75},1.375]
["SERCOP-001-02-01","Inscripción y habilitación de entidades públicas contratantes en el Sistema Oficial de Contratación Pública del Ecuador",{"$f":"'AUXILIAR COSTO ADMINISTRACIÓN'!C41","v":0.25},0.625,{"$f":"'AUXILIAR COSTO ADMINISTRACIÓN'!D41","v":0.75},1.375]
["SERCOP-001-02-06 ","Cambio de perfil de \"usuario administrador del portal\" de entidades contratantes en el Sistema Oficial de Contratación Pública del Ecuador",{"$f":"'AUXILIAR COSTO ADMINISTRACIÓN'!C104","v":0.28333333333333333},0.70833333333333326,{"$f":"'AUXILIAR COSTO ADMINISTRACIÓN'!D104","v":0.85},1.5583333333333331]
["SERCOP-001-02-07","Actualización de información de las entidades contratantes en el Sistema Oficial de Contratación Pública del Ecuador",{"$f":"'AUXILIAR COSTO ADMINISTRACIÓN'!C146","v":0.75},1.875,{"$f":"'AUXILIAR COSTO ADMINISTRACIÓN'!D146","v":2.25},4.125]
["SERCOP-008-01-01","Autorización de Licencias de Importación en la Ventanilla Única Ecuatoriana",{"$f":"'AUXILIAR COSTO ADMINISTRACIÓN'!C272","v":1.6666666666666667},4.166666666666667,{"$f":"'AUXILIAR COSTO ADMINISTRACIÓN'!D272","v":5},9.1666666666666679]
["SERCOP-009-03-03 ","Publicación de información específica en el portal institucional del Servicio Nacional de Contratación Pública SERCOP",{"$f":"'AUXILIAR COSTO ADMINISTRACIÓN'!C251","v":5.125},12.8125,{"$f":"'AUXILIAR COSTO ADMINISTRACIÓN'!D251","v":20.5},33.3125]
["SERCOP-008-01-02","Autorización de Importación de Bienes y Servicios en el Sistema Nacional de Contratación Pública",{"$f":"'AUXILIAR COSTO ADMINISTRACIÓN'!C293","v":5.25},13.125,{"$f":"'AUXILIAR COSTO ADMINISTRACIÓN'!D293","v":15.75},28.875]
["SERCOP-004-01-01 ","Atención de denuncia o reclamo sobre un proceso de contratación pública",{"$f":"'AUXILIAR COSTO ADMINISTRACIÓN'!C335","v":20.75},51.875,{"$f":"'AUXILIAR COSTO ADMINISTRACIÓN'!D335","v":62.25},114.125]
["SERCOP-003-01-02 ","Capacitación presencial en el Sistema Nacional de Contratación Pública",{"$f":"'AUXILIAR COSTO ADMINISTRACIÓN'!C188","v":1.2246666666666668},3.061666666666667,{"$f":"'AUXILIAR COSTO ADMINISTRACIÓN'!D188","v":6.4740000000000002},9.5356666666666676]
["SERCOP-001-01-01","Inscripción y habilitación o actualización de información del proveedor en el Sistema Oficial de Contratación Pública del Ecuador",{"$f":"'AUXILIAR COSTO ADMINISTRACIÓN'!C20","v":0.3833333333333333},0.95833333333333326,{"$f":"'AUXILIAR COSTO ADMINISTRACIÓN'!D20","v":1.1499999999999999},2.1083333333333334]
["SERCOP-005-01-07","Asesoría técnica y legal en Contratación Pública",{"$f":"'AUXILIAR COSTO ADMINISTRACIÓN'!C146","v":0.75},1.875,{"$f":"'AUXILIAR COSTO ADMINISTRACIÓN'!D146","v":2.25},4.125]
["SERCOP-002-02-01","Certificación para personas naturales o juridicas de no tener procesos adjudicados o contratos pendientes con el Estado, y de no ser contratista incumplido o adjudicatario fallido",{"$f":"'AUXILIAR COSTO ADMINISTRACIÓN'!C230","v":0},0,{"$f":"'AUXILIAR COSTO ADMINISTRACIÓN'!D230","v":0.36704815682870373},0.36704815682870373]
["SERCOP-001-02-05 ","Reseteo de contraseña de administrador del portal de entidades contratantes",{"$f":"'AUXILIAR COSTO ADMINISTRACIÓN'!C83","v":0.11666666666666667},0.29166666666666663,{"$f":"'AUXILIAR COSTO ADMINISTRACIÓN'!D83","v":0.36166666666666664},0.65333333333333332]
["SERCOP-005-01-08 ","Soporte en las herramientas del Sistema Oficial de Contratación Pública del Ecuador - SOCE",{"$f":"'AUXILIAR COSTO ADMINISTRACIÓN'!C167","v":2.8666666666666671},7.1666666666666687,{"$f":"'AUXILIAR COSTO ADMINISTRACIÓN'!D167","v":8.6},15.766666666666669]

{"sheet":"RESUMEN DE COSTOS AP","index":4,"n_rows":21,"n_cols":4,"rows_kept":21,"cut":false,"hidden":false,"merged":[[0,0,0,5],[1,0,1,5]]}
["PRIORIZACIÓN DE TRÁMITES ADMINISTRATIVOS"]
["COSTOS PARA LA ADMINISTRACIÓN PÚBLICA"]
[]
["IDENTIFICADOR","TRÁMITE","COSTO PARA LA ADM. PÚBLICA","PUNTUACIÓN"]
["SERCOP-002-02-01","Certificación para personas naturales o juridicas de no tener procesos adjudicados o contratos pendientes con el Estado, y de no ser contratista incumplido o adjudicatario fallido",0.36704815682870373,5]
["SERCOP-001-02-05 ","Reseteo de contraseña de administrador del portal de entidades contratantes",0.65333333333333332,5]
["SERCOP-001-02-04 ","Inscripción y habilitación de entidades contratantes de derecho privado en el Sistema Oficial de Contratación Pública del Ecuador",1.375,5]
["SERCOP-001-02-01","Inscripción y habilitación de entidades públicas contratantes en el Sistema Oficial de Contratación Pública del Ecuador",1.375,5]
["SERCOP-001-02-06 ","Cambio de perfil de \"usuario administrador del portal\" de entidades contratantes en el Sistema Oficial de Contratación Pública del Ecuador",1.5583333333333331,5]
["SERCOP-001-01-01","Inscripción y habilitación o actualización de información del proveedor en el Sistema Oficial de Contratación Pública del Ecuador",2.1083333333333334,10]
["SERCOP-001-02-07","Actualización de información de las entidades contratantes en el Sistema Oficial de Contratación Pública del Ecuador",4.125,10]
["SERCOP-005-01-07","Asesoría técnica y legal en Contratación Pública",4.125,10]
["SERCOP-010-01-01","Registro para la certificación de Operadores del Sistema Nacional de Contratación Pública",6.5137377777777772,10]
["SERCOP-008-01-01","Autorización de Licencias de Importación en la Ventanilla Única Ecuatoriana",9.1666666666666679,10]
["SERCOP-003-01-02 ","Capacitación presencial en el Sistema Nacional de Contratación Pública",9.5356666666666676,20]
["SERCOP-005-01-08 ","Soporte en las herramientas del Sistema Oficial de Contratación Pública del Ecuador - SOCE",15.766666666666669,20]
["SERCOP-008-01-02","Autorización de Importación de Bienes y Servicios en el Sistema Nacional de Contratación Pública",28.875,20]
["SERCOP-009-03-03 ","Publicación de información específica en el portal institucional del Servicio Nacional de Contratación Pública SERCOP",33.3125,20]
["SERCOP-008-02-02","Autorización de Contratación extranjera de servicios de consultoría en el Sistema Nacional de Contratación Pública",52.25,20]
["SERCOP-004-01-01 ","Atención de denuncia o reclamo sobre un proceso de contratación pública",114.125,20]
["SERCOP-008-03-01","Determinación del Giro Específico del Negocio en el Sistema Nacional de Contratación Pública",528.77083333333326,20]

{"sheet":"AUXILIAR COSTO ADMINISTRACIÓN","index":5,"n_rows":356,"n_cols":14,"rows_kept":356,"cut":false,"hidden":false,"merged":[]}
[]
["TRÁMITE:","SERCOP-001-01-01","Inscripción y habilitación o actualización de información del proveedor en el Sistema Oficial de Contratación Pública del Ecuador"]
["NO.","ACTIVIDAD","TIEMPO (HORAS)","Recurso",3]
[1,"Verificar la información Ingresada en el SOCE",0.16666666666666666,0.5]
[2,"Solicitar la Corrección",8.3333333333333329E-2,0.25]
[3,"Actualizar estado en el SOCE 2",8.3333333333333329E-2,0.25]
[4,"Cambio a Pasivo o Aprobación",0.05,0.15000000000000002]
[5]
[6]
[7]
[8]
[9]
[10]
[11]
[12]
[13]
[14]
[15]
[]
[null,"SUMATORIA ACTIVIDADES",0.3833333333333333,1.1499999999999999]
[]
[]
["TRÁMITE:","SERCOP-001-02-01","Inscripción y habilitación de entidades públicas contratantes en el Sistema Oficial de Contratación Pública del Ecuador"]
["NO.","ACTIVIDAD","TIEMPO (HORAS)","Recurso",3]
[1,"Verificar la Documentación presentada en ventanilla",0.16666666666666666,0.5]
[2,"Solicitar la Corrección de Documentación",8.3333333333333329E-2,0.25]
[3]
[4]
[5]
[6]
[7]
[8]
[9]
[10]
[11]
[12]
[13]
[14]
[15]
[]
[null,"SUMATORIA ACTIVIDADES",0.25,0.75]
[]
[]
["TRÁMITE:","SERCOP-001-02-04 ","Inscripción y habilitación de entidades contratantes de derecho privado en el Sistema Oficial de Contratación Pública del Ecuador"]
["NO.","ACTIVIDAD","TIEMPO (HORAS)","Recurso",3]
[1,"Verificar la Documentación presentada en ventanilla",0.16666666666666666,0.5]
[2,"Solicitar la Corrección de Documentación",8.3333333333333329E-2,0.25]
[3]
[4]
[5]
[6]
[7]
[8]
[9]
[10]
[11]
[12]
[13]
[14]
[15]
[]
[null,"SUMATORIA ACTIVIDADES",0.25,0.75]
[]
[]
["TRÁMITE:","SERCOP-001-02-05 ","Reseteo de contraseña de administrador del portal de entidades contratantes"]
["NO.","ACTIVIDAD","TIEMPO (HORAS)","Recurso",3.1]
[1,"Verificar la Documentación presentada en ventanilla",8.3333333333333329E-2,0.2583333333333333]
[2,"Actualizar accesos",3.3333333333333333E-2,0.10333333333333333]
[3]
[4]
[5]
[6]
[7]
[8]
[9]
[10]
[11]
[12]
[13]
[14]
[15]
[]
[null,"SUMATORIA ACTIVIDADES",0.11666666666666667,0.36166666666666664]
[]
[]
["TRÁMITE:","SERCOP-001-02-06 ","Cambio de perfil de \"usuario administrador del portal\" de entidades contratantes en el Sistema Oficial de Contratación Pública del Ecuador"]
["NO.","ACTIVIDAD","TIEMPO (HORAS)","Recurso",3]
[1,"Verificar la Documentación presentada ",8.3333333333333329E-2,0.25]
[2,"Realizar Cambios en el Sistema",3.3333333333333333E-2,0.1]
[3,"Responder Oficio",0.16666666666666666,0.5]
[4]
[5]
[6]
[7]
[8]
[9]
[10]
[11]
[12]
[13]
[14]
[15]
[]
[null,"SUMATORIA ACTIVIDADES",0.28333333333333333,0.85]
[]
[]
["TRÁMITE:","SERCOP-001-02-07","Actualización de información de las entidades contratantes en el Sistema Oficial de Contratación Pública del Ecuador"]
["NO.","ACTIVIDAD","TIEMPO (HORAS)","Recurso",3]
[1,"Verificar la Documentación presentada en ventanilla",8.3333333333333329E-2,0.25]
[2,"Actualizar información",3.3333333333333333E-2,0.1]
[3]
[4]
[5]
[6]
[7]
[8]
[9]
[10]
[11]
[12]
[13]
[14]
[15]
[]
[null,"SUMATORIA ACTIVIDADES",0.11666666666666667,0.35]
[]
[]
["TRÁMITE:","SERCOP-005-01-07","Asesoría técnica y legal en Contratación Pública"]
["NO.","ACTIVIDAD","TIEMPO (HORAS)","Recurso",3]
[1,"Asesoramiento Técnico y Legal",0.75,2.25]
[2]
[3]
[4]
[5]
[6]
[7]
[8]
[9]
[10]
[11]
[12]
[13]
[14]
[15]
[]
[null,"SUMATORIA ACTIVIDADES",0.75,2.25]
[]
[]
["TRÁMITE:","SERCOP-005-01-08 ","Soporte en las herramientas del Sistema Oficial de Contratación Pública del Ecuador - SOCE"]
["NO.","ACTIVIDAD","TIEMPO (HORAS)","Recurso",3]
[1,"Recepción del Requerimiento",8.3333333333333329E-2,0.25]
[2,"Evaluar trámite",8.3333333333333329E-2,0.25]
[3,"Reasignación del Trámite -Incidente",3.3333333333333333E-2,0.1]
[4,"Analizar Incidente",2,6]
[5,"Generar Respuesta",8.3333333333333329E-2,0.25]
[6,"Responder al usuario",8.3333333333333329E-2,0.25]
[7,"Enviar Documento Físico",0.5,1.5]
[8]
[9]
[10]
[11]
[12]
[13]
[14]
[15]
[]
[null,"SUMATORIA ACTIVIDADES",2.8666666666666671,8.6]
[]
[]
["TRÁMITE:","SERCOP-003-01-02 ","Capacitación presencial en el Sistema Nacional de Contratación Pública"]
["NO.","ACTIVIDAD","TIEMPO (HORAS)","Recurso",25,"Asistentes"]
[1,"Solicitar laboratorio",1.3333333333333332E-2,3.9999999999999994E-2,3]
[2,"Preparar laboratorio de Computación",0.5,1.5,3]
[3,"Preparar material de trabajo",0.2,0.60000000000000009,3]
[4,"Realizar evento de capacitación",0.4,4,3]
[5,"Realizar evaluación de reacción",1.3333333333333333E-3,4.0000000000000001E-3,3]
[6,"Registrar asistencia en el sistema",1.6666666666666666E-2,0.05,3]
[7,"Preparar y presentar informe de capacitación",0.08,0.24,3]
[8,"Analizar, suscribir y archivar informe",1.3333333333333332E-2,3.9999999999999994E-2,3]
[9]
[10]
[11]
[12]
[13]
[14]
[15]
[]
[null,"SUMATORIA ACTIVIDADES",1.2246666666666668,6.4740000000000002]
[]
[]
["TRÁMITE:","SERCOP-010-01-01","Registro para la certificación de Operadores del Sistema Nacional de Contratación Pública",null,1500,"Asistentes Evento"]
["NO.","ACTIVIDAD","TIEMPO (HORAS)","Recurso",150,"Asistentes/Universidad"]
[1,"Solicitar laboratorio",3.3333333333333335E-3,0.01,3]
[2,"Inspección del laboratorio de Computación",0.58333333333333337,6.6666666666666666E-2,5]
[3,"Preparar Reactivos",0.51200000000000001,1.536,3]
[4,"Preparar Instructivos",5.3333333333333337E-2,0.16,3]
[5,"Coordinar con el personal que participara como supervisor del evento",3.3333333333333332E-4,1E-3,3]
[6,"Capacitar a los supervisores del evento",1.32E-3,3.96E-3,3,"3 Grupos"]
[7,"Realizar señalización del evento",0.58333333333333337,7.4999999999999997E-2,5,5]
[8,"Registro del Participante",1.6666666666666666E-2,0.05,3]
[9,"Realizar evento de Certificación",3.5333333333333335E-2,0.11542222222222222,3.2666666666666666]
[10,"Procesamiento de resultados",2E-3,6.0000000000000001E-3,3]
[11,"Preparar y presentar informe ",1.3333333333333333E-3,4.0000000000000001E-3,3]
[12,"Analizar, suscribir y archivar informe",6.6666666666666664E-4,2E-3,3]
[13,"Generar Certificado",2.2222222222222221E-4,6.6666666666666664E-4,3]
[14]
[15]
[]
[null,"SUMATORIA ACTIVIDADES",1.7932088888888889,2.0307155555555547]
[]
[]
["TRÁMITE:","SERCOP-002-02-01","Certificación para personas naturales o jurídicas de no tener procesos adjudicados o contratos pendientes con el Estado, y de no ser contratista incumplido o adjudicatario fallido"]
["NO.","ACTIVIDAD","TIEMPO (HORAS)","Recurso",null,"Dirección",null,2019]
[1,null,0,0.36704815682870373,null,"Desarrollo de soluciones",null,0]
[2,null,null,null,null,"Servicios Informáticos",null,0]
[3,null,null,null,null,"Operaciones de I. T.",null,447384.52]
[4,null,null,null,null,"Seguridad Informática",null,23812.91]
[5,null,null,null,null,null,null,471197.43]
[6]
[7,null,null,null,null,"Equipo 2019",null,797321]
[8]
[9,null,null,null,null,null,null,1268518.43]
[10,null,null,null,null,"/día",360,3523.6623055555556]
[11,null,null,null,null,"/hora",8,440.45778819444445]
[12,null,null,null,null,"/minuto",60,7.3409631365740742]
[13,null,null,null,null,"/segundo",60,0.1223493856095679]
[14]
[15,null,null,null,null,"Tiempo Total estimado de procesamiento",null,3]
[null,null,null,null,null,null,null,0.36704815682870373,"Mant/T"]
[null,"SUMATORIA ACTIVIDADES",0,0.36704815682870373,null,null,68878,25281.542946047455]
[]
[]
["TRÁMITE:","SERCOP-009-03-03 ","Publicación de información específica en el portal institucional del Servicio Nacional de Contratación Pública SERCOP"]
["NO.","ACTIVIDAD","TIEMPO (HORAS)","Recurso"]
[1,"Recepción del requerimiento",0.25,1,4]
[2,"Reasignación a Encargado",3.3333333333333333E-2,0.13333333333333333]
[3,"Revisar requerimiento",0.16666666666666666,0.66666666666666663]
[4,"Estimar tiempo de publicación",8.3333333333333332E-3,3.3333333333333333E-2]
[5,"Revisar archivos",0.41666666666666669,1.6666666666666667]
[6,"Revisar si el sitio es adecuado para la publicación",0.16666666666666666,0.66666666666666663]
[7,"Adecuar sitio para la publicación",1,4]
[8,"Publicación de la información",3,12]
[9,"Informar al requirente",8.3333333333333329E-2,0.33333333333333331]
[10]
[11]
[12]
[13]
[14]
[15]
[]
[null,"SUMATORIA ACTIVIDADES",5.125,20.5]
[]
[]
["TRÁMITE:","SERCOP-008-01-01","Autorización de Licencias de Importación en la Ventanilla Única Ecuatoriana"]
["NO.","ACTIVIDAD","TIEMPO (HORAS)","Recurso"]
[1,"Revisar información y Documentación del Sistema Bonita-VUE/Ecuapass",1,3,3,null,1700,3,5100,null,null,400,15300]
[2,"Enviar para aprobación",0.5,1.5,null,null,1200,2,2400,null,null,400,4800]
[3,"Aprobación y envío para autorización",0.16666666666666666,0.5,null,null,800,2,1600,null,null,400,3200]
[4,null,null,null,null,null,2500,1,2500,null,null,400,2500]
[5]
[6,null,null,null,null,null,null,null,139200,"Costo Anual","Costo/Unit",null,25800]
[7,null,null,null,null,null,"Tiempo","Cantidad","Ponderación"]
[8,null,null,null,null,"Vae",30,300,9000,37139.807897545354,123.79935965848451,null,6883.6712913553902,22.945570971184633]
[9,null,null,null,null,"Lic",5,1020,5100,21045.891141942368,20.633226609747418,null,3900.7470651013878,3.8242618285307723]
[10,null,null,null,null,"ByS",15,1300,19500,80469.58377801493,61.899679829242253,null,14914.621131270012,11.472785485592317]
[11,null,null,null,null,"Cons",12,11,132,544.71718249733192,49.519743863393813,null,100.96051227321239,9.1782283884738529]
[12]
[13,null,null,null,null,null,null,null,33732,139199.99999999997]
[14,null,null,null,null,null,"Promedio/Ítem",null,4.1266453219494839,null,null,null,0.76485236570615445]
[15]
[]
[null,"SUMATORIA ACTIVIDADES",1.6666666666666667,5]
[]
[]
["TRÁMITE:","SERCOP-008-01-02","Autorización de Importación de Bienes y Servicios en el Sistema Nacional de Contratación Pública"]
["NO.","ACTIVIDAD","TIEMPO (HORAS)","Recurso"]
[1,"Revisar Documentación completa del Oficio",0.25,0.75,3]
[2,"Analizar proceso de Verificación de Producción Nacional",1,3]
[3,"Búsqueda de productores",0.5,1.5]
[4,"Generar informe de resultados",2,6]
[5,"Revisar informe de resultados",0.25,0.75]
[6,"Aprobar informe de resultado",0.25,0.75]
[7,"Generar respuesta de resultados - Oficio",0.5,1.5]
[8,"Revisar respuesta de resultados - Oficio",0.25,0.75]
[9,"Firmar respuesta de resultados - Oficio y enviar",0.25,0.75]
[10]
[11]
[12]
[13]
[14]
[15]
[]
[null,"SUMATORIA ACTIVIDADES",5.25,15.75]
[]
[]
["TRÁMITE:","SERCOP-008-02-02","Autorización de Contratación extranjera de servicios de consultoría en el Sistema Nacional de Contratación Pública"]
["NO.","ACTIVIDAD","TIEMPO (HORAS)","Recurso"]
[1,"Revisar Documentación completa del Oficio",0.25,0.75,3]
[2,"Analizar Términos de Referencia - Pliegos",1,3]
[3,"Elaboración de Pliegos",1,3]
[4,"Revisar Pliegos de la Consultoría",0.5,1.5]
[5,"Suscripción de Pliegos",0.25,0.75]
[6,"Publicación de Pliegos",0.5,1.5]
[7,"Preguntas y Respuestas",1,3]
[8,"Recepción y Apertura de Ofertas",0.5,1.5]
[9,"Calificación de Ofertas",2,6]
[10,"Generar Informe de Resultados",1,3]
[11,"Revisar Informe de Resultados",0.25,0.75]
[12,"Aprobar Informe de Resultados",0.25,0.75]
[13,"Publicación de los resultados en el Portal",0.5,1.5]
[14,"Generación del Oficio de Respuesta",0.5,1.5]
[15]
[]
[null,"SUMATORIA ACTIVIDADES",9.5,28.5]
[]
[]
["TRÁMITE:","SERCOP-004-01-01 ","Atención de denuncia o reclamo sobre un proceso de contratación pública"]
["NO.","ACTIVIDAD","TIEMPO (HORAS)","Recurso"]
[1,"Recepción y determinación del tipo de trámite",8.3333333333333329E-2,0.25,3]
[2,"Verificar riesgo del proceso y reasignación de la solicitud",8.3333333333333329E-2,0.25]
[3,"Registrar trámite ",8.3333333333333329E-2,0.25]
[4,"Revisar Solicitud",0.5,1.5]
[5,"Determinar la admisión de la Denuncia o Reclamo",0.33333333333333331,1]
[6,"Analizar si procedimiento esta acorde a la normativa",3,9]
[7,"Analizar la desagregación tecnológica",1,3]
[8,"Realizar informe de no observado ",0.5,1.5]
[9,"Generar, Revisar y Aprobar Oficio",3,9]
[10,"Solicitar suspensión del proceso",0.16666666666666666,0.5]
[11,"Revisar pronunciamiento de la entidad",3,9]
[12,"Generar, revisar y oficio de recomendaciones ",2,6]
[13,"Aprobar oficio",1,3]
[14,"Generar, revisar, aprobar oficio Ampliatorio",3,9]
[15,"Generar, revisar, aprobar oficio Para Entes de Control",3,9]
[]
[null,"SUMATORIA ACTIVIDADES",20.75,62.25]
[]
[]
["TRÁMITE:","SERCOP-008-03-01","Determinación del Giro Específico del Negocio en el Sistema Nacional de Contratación Pública"]
["NO.","ACTIVIDAD","TIEMPO (HORAS)","Recurso"]
[1,"Recepción y reasignación de la Solicitud",8.3333333333333329E-2,0.25,3]
[2,"Revisar Solicitud",1,3]
[3,"Coordinación y Reunión con la entidad",4,12]
[4,"Receptar y Revisar borradores y/o alcance de la información",8,24]
[5,"Análisis de la información",8,24]
[6,"Elaboración del Informe",24,72]
[7,"Revisión del informe",6,18]
[8,"Aprobación del informe",6,18]
[9,"Generación del Perfil de Riesgo",24,72]
[10,"Convocatoria al Comité de GEN",1,3]
[11,"Revisión del Comité de Giro Específico del Negocio",3,9]
[12,"Elaboración de respuesta a la Solicitud",1,3]
[13,"Revisión de la respuesta por Jurídico",3,9]
[14,"Generación y envío de Quipux",1,3]
[15,"Publicar respuesta en el portal",5.125,20.5]
[]
[null,"SUMATORIA ACTIVIDADES",95.208333333333329,290.75]

{"sheet":"TIEMPO DE RESPUESTA","index":6,"n_rows":21,"n_cols":4,"rows_kept":21,"cut":false,"hidden":false,"merged":[[0,0,0,3],[1,0,1,3]]}
["PRIORIZACIÓN DE TRÁMITES ADMINISTRATIVOS"]
["TIEMPO DE RESPUESTA"]
[]
["IDENTIFICADOR","TRÁMITE","TIEMPO RESPUESTA (horas laborables)","PUNTUACIÓN"]
["SERCOP-010-01-01","Registro para la certificación de Operadores del Sistema Nacional de Contratación Pública",{"$f":"1/60","v":1.6666666666666666E-2},0]
["SERCOP-008-02-02","Autorización de Contratación extranjera de servicios de consultoría en el Sistema Nacional de Contratación Pública",{"$f":"7200/60","v":120},30]
["SERCOP-008-03-01","Determinación del Giro Específico del Negocio en el Sistema Nacional de Contratación Pública",{"$f":"4800/60","v":80},30]
["SERCOP-001-02-04 ","Inscripción y habilitación de entidades contratantes de derecho privado en el Sistema Oficial de Contratación Pública del Ecuador",{"$f":"20/60","v":0.33333333333333331},0]
["SERCOP-001-02-01","Inscripción y habilitación de entidades públicas contratantes en el Sistema Oficial de Contratación Pública del Ecuador",{"$f":"20/60","v":0.33333333333333331},0]
["SERCOP-001-02-06 ","Cambio de perfil de \"usuario administrador del portal\" de entidades contratantes en el Sistema Oficial de Contratación Pública del Ecuador",{"$f":"960/60","v":16},0]
["SERCOP-001-02-07","Actualización de información de las entidades contratantes en el Sistema Oficial de Contratación Pública del Ecuador",{"$f":"20/60","v":0.33333333333333331},0]
["SERCOP-008-01-01","Autorización de Licencias de Importación en la Ventanilla Única Ecuatoriana",{"$f":"1440/60","v":24},0]
["SERCOP-009-03-03 ","Publicación de información específica en el portal institucional del Servicio Nacional de Contratación Pública SERCOP",{"$f":"1440/60","v":24},0]
["SERCOP-008-01-02","Autorización de Importación de Bienes y Servicios en el Sistema Nacional de Contratación Pública",{"$f":"4800/60","v":80},30]
["SERCOP-004-01-01 ","Atención de denuncia o reclamo sobre un proceso de contratación pública",{"$f":"3840/60","v":64},30]
["SERCOP-003-01-02 ","Capacitación presencial en el Sistema Nacional de Contratación Pública",{"$f":"1/60","v":1.6666666666666666E-2},0]
["SERCOP-001-01-01","Inscripción y habilitación o actualización de información del proveedor en el Sistema Oficial de Contratación Pública del Ecuador",{"$f":"20/60","v":0.33333333333333331},0]
["SERCOP-005-01-07","Asesoría técnica y legal en Contratación Pública",{"$f":"45/60","v":0.75},0]
["SERCOP-002-02-01","Certificación para personas naturales o juridicas de no tener procesos adjudicados o contratos pendientes con el Estado, y de no ser contratista incumplido o adjudicatario fallido",{"$f":"1/60","v":1.6666666666666666E-2},0]
["SERCOP-001-02-05 ","Reseteo de contraseña de administrador del portal de entidades contratantes",{"$f":"10/60","v":0.16666666666666666},0]
["SERCOP-005-01-08 ","Soporte en las herramientas del Sistema Oficial de Contratación Pública del Ecuador - SOCE",{"$f":"480/60","v":8},0]

{"sheet":"CANAL ATENCIÓN","index":7,"n_rows":21,"n_cols":12,"rows_kept":21,"cut":false,"hidden":false,"merged":[[0,0,0,3],[1,0,1,3]]}
["PRIORIZACIÓN DE TRÁMITES ADMINISTRATIVOS"]
["CANAL DE ATENCIÓN"]
[null,null,null,null,null,null,null,null,"Totalmente en Línea",null,null,0]
["IDENTIFICADOR","TRÁMITE","CANAL ATENCIÓN","PUNTUACIÓN",null,null,null,null,"No se completa totalmente en línea.",null,null,10]
["SERCOP-010-01-01","Registro para la certificación de Operadores del Sistema Nacional de Contratación Pública","Totalmente en Línea",{"$f":"IF(ISBLANK(C5),\"\",IF(C5=\"Totalmente en línea\",0,IF(C5=\"Inicia en línea\",6,10)))","v":0}]
["SERCOP-008-02-02","Autorización de Contratación extranjera de servicios de consultoría en el Sistema Nacional de Contratación Pública","Totalmente en Línea",{"$f":"IF(ISBLANK(C6),\"\",IF(C6=\"Totalmente en línea\",0,IF(C6=\"Inicia en línea\",6,10)))","v":0}]
["SERCOP-008-03-01","Determinación del Giro Específico del Negocio en el Sistema Nacional de Contratación Pública","Totalmente en Línea",0]
["SERCOP-001-02-04 ","Inscripción y habilitación de entidades contratantes de derecho privado en el Sistema Oficial de Contratación Pública del Ecuador","No se completa totalmente en línea.",10]
["SERCOP-001-02-01","Inscripción y habilitación de entidades públicas contratantes en el Sistema Oficial de Contratación Pública del Ecuador","No se completa totalmente en línea.",10]
["SERCOP-001-02-06 ","Cambio de perfil de \"usuario administrador del portal\" de entidades contratantes en el Sistema Oficial de Contratación Pública del Ecuador","No se completa totalmente en línea.",10]
["SERCOP-001-02-07","Actualización de información de las entidades contratantes en el Sistema Oficial de Contratación Pública del Ecuador","Totalmente en Línea",0]
["SERCOP-008-01-01","Autorización de Licencias de Importación en la Ventanilla Única Ecuatoriana","Totalmente en Línea",0]
["SERCOP-009-03-03 ","Publicación de información específica en el portal institucional del Servicio Nacional de Contratación Pública SERCOP","Totalmente en Línea",0]
["SERCOP-008-01-02","Autorización de Importación de Bienes y Servicios en el Sistema Nacional de Contratación Pública","Totalmente en Línea",0]
["SERCOP-004-01-01 ","Atención de denuncia o reclamo sobre un proceso de contratación pública","Totalmente en Línea",0]
["SERCOP-003-01-02 ","Capacitación presencial en el Sistema Nacional de Contratación Pública","Totalmente en Línea",0]
["SERCOP-001-01-01","Inscripción y habilitación o actualización de información del proveedor en el Sistema Oficial de Contratación Pública del Ecuador","Totalmente en Línea",0]
["SERCOP-005-01-07","Asesoría técnica y legal en Contratación Pública","Totalmente en Línea",0]
["SERCOP-002-02-01","Certificación para personas naturales o juridicas de no tener procesos adjudicados o contratos pendientes con el Estado, y de no ser contratista incumplido o adjudicatario fallido","Totalmente en Línea",0]
["SERCOP-001-02-05 ","Reseteo de contraseña de administrador del portal de entidades contratantes","Totalmente en Línea",0]
["SERCOP-005-01-08 ","Soporte en las herramientas del Sistema Oficial de Contratación Pública del Ecuador - SOCE","Totalmente en Línea",0]

{"sheet":"RESUMEN","index":8,"n_rows":20,"n_cols":25,"rows_kept":20,"cut":false,"hidden":false,"merged":[[1,9,1,10],[1,11,1,12],[1,13,2,13],[0,2,0,6],[0,7,0,12],[1,5,2,5],[1,6,2,6],[1,7,1,8],[1,0,2,0],[1,1,2,1],[1,2,2,2],[1,3,2,3],[1,4,2,4]]}
[null,null,"BÁSICOS",null,null,null,null,"ADICIONALES"]
["ID trámite","Nombre del trámite","Demanda","Quejas","Costo para administración","Tiempo de respuesta","Canal de atención","Necesidades ciudadanas",null,"Susceptibilidad a corrupción",null,"Volumen de devoluciones",null,"PUNTAJE TOTAL"]
[null,null,null,null,null,null,null,"Criterio","Puntuación","Criterio","Puntuación","Criterio","Puntuación",null,null,null,null,null,null,null,"demanda",0,3,6,10]
["SERCOP-010-01-01","Registro para la certificación de Operadores del Sistema Nacional de Contratación Pública",0,0,10,0,0,"NO",{"$f":"IF(H4=\"SI\",5,0)","v":0},"NO",{"$f":"IF(J4=\"SI\",10,0)","v":0},"NO",{"$f":"IF(L4=\"SI\",5,0)","v":0},{"$f":"SUM(C4:G4,I4,K4,M4)","v":10},null,null,null,null,null,null,"quejas",0,4,10]
["SERCOP-008-02-02","Autorización de Contratación extranjera de servicios de consultoría en el Sistema Nacional de Contratación Pública",3,0,20,30,0,"NO",0,"NO",0,"NO",0,53,null,null,null,null,null,null,"cpa",5,10,20]
["SERCOP-008-03-01","Determinación del Giro Específico del Negocio en el Sistema Nacional de Contratación Pública",3,0,20,30,0,"NO",0,"NO",0,"NO",0,53,null,null,null,null,null,null,"tr",0,30]
["SERCOP-001-02-04 ","Inscripción y habilitación de entidades contratantes de derecho privado en el Sistema Oficial de Contratación Pública del Ecuador",3,0,5,0,10,"NO",0,"NO",0,"NO",0,18,null,null,null,null,null,null,"ca",0,10]
["SERCOP-001-02-01","Inscripción y habilitación de entidades públicas contratantes en el Sistema Oficial de Contratación Pública del Ecuador",3,0,5,0,10,"NO",0,"NO",0,"NO",0,18,null,null,null,null,null,null,null,"SI","NO"]
["SERCOP-001-02-06 ","Cambio de perfil de \"usuario administrador del portal\" de entidades contratantes en el Sistema Oficial de Contratación Pública del Ecuador",3,0,5,0,10,"NO",0,"NO",0,"NO",0,18]
["SERCOP-001-02-07","Actualización de información de las entidades contratantes en el Sistema Oficial de Contratación Pública del Ecuador",6,0,10,0,0,"NO",0,"NO",0,"NO",0,16]
["SERCOP-008-01-01","Autorización de Licencias de Importación en la Ventanilla Única Ecuatoriana",6,0,10,0,0,"NO",0,"NO",0,"NO",0,16]
["SERCOP-009-03-03 ","Publicación de información específica en el portal institucional del Servicio Nacional de Contratación Pública SERCOP",6,0,20,0,0,"NO",0,"NO",0,"NO",0,26]
["SERCOP-008-01-02","Autorización de Importación de Bienes y Servicios en el Sistema Nacional de Contratación Pública",6,0,20,30,0,"NO",0,"NO",0,"NO",0,56]
["SERCOP-004-01-01 ","Atención de denuncia o reclamo sobre un proceso de contratación pública",6,0,20,30,0,"NO",0,"NO",0,"NO",0,56]
["SERCOP-003-01-02 ","Capacitación presencial en el Sistema Nacional de Contratación Pública",10,0,20,0,0,"NO",0,"NO",0,"NO",0,30]
["SERCOP-001-01-01","Inscripción y habilitación o actualización de información del proveedor en el Sistema Oficial de Contratación Pública del Ecuador",10,0,10,0,0,"NO",0,"NO",0,"NO",0,20]
["SERCOP-005-01-07","Asesoría técnica y legal en Contratación Pública",10,0,10,0,0,"NO",0,"NO",0,"NO",0,20]
["SERCOP-002-02-01","Certificación para personas naturales o juridicas de no tener procesos adjudicados o contratos pendientes con el Estado, y de no ser contratista incumplido o adjudicatario fallido",10,0,5,0,0,"NO",0,"NO",0,"NO",0,15]
["SERCOP-001-02-05 ","Reseteo de contraseña de administrador del portal de entidades contratantes",10,0,5,0,0,"NO",0,"NO",0,"NO",0,15]
["SERCOP-005-01-08 ","Soporte en las herramientas del Sistema Oficial de Contratación Pública del Ecuador - SOCE",10,0,20,0,0,"NO",0,"NO",0,"NO",0,30]